fUST/lending_fUST_20250624
["ID","MTS","AMOUNT","RATE_DAILY","PERIOD"]
[367205965,1750701046315,-460.0,0.00019592,2]
[367205967,1750701046325,-460.0,0.00019592,2]
[367205969,1750701046335,-2411.78,0.00019592,2]
[367205971,1750701046344,-1218.64,0.00019592,2]
[367205973,1750701046354,-696.62,0.00019592,2]
[367205975,1750701046364,-1602.53,0.00019592,2]
[367205977,1750701046374,-460.0,0.00019592,2]
[367205979,1750701046383,-403.18329381,0.00019592,2]
[367205981,1750701046393,-7448.95,0.00019592,2]
[367205983,1750701046403,-500.0,0.00019592,2]
[367205985,1750701046413,-1149.04,0.00019592,2]
[367205987,1750701046423,-441.50012172,0.00019592,2]
[367205989,1750701046436,-752.61,0.00019592,2]
[367205990,1750701046446,-762.09,0.00019592,2]
[367205991,1750701046456,-460.0,0.00019592,2]
[367205993,1750701046466,-325.74406051,0.00019592,2]
[367205996,1750701046485,-134.25593949,0.00019592,2]
[367205998,1750701046495,-460.0,0.00019592,2]
[367206000,1750701046505,-460.0,0.00019592,2]
[367206002,1750701046514,-649.71,0.00019592,2]
[367206004,1750701046524,-460.0,0.00019592,2]
[367206006,1750701046535,-460.0,0.00019592,2]
[367206009,1750701046545,-460.0,0.00019592,2]
[367206011,1750701046555,-1683.02,0.00019592,2]
[367206013,1750701046565,-460.0,0.00019592,2]
[367206015,1750701046574,-4633.93,0.00019592,2]
[367206017,1750701046584,-1566.01,0.00019592,2]
[367206019,1750701046594,-460.0,0.00019592,2]
[367206021,1750701046604,-463.32,0.00019592,2]
[367206023,1750701046614,-460.0,0.00019592,2]
[367206025,1750701046623,-968.83,0.00019592,2]
[367206027,1750701046633,-460.0,0.00019592,2]
[367206029,1750701046643,-757.58,0.00019592,2]
[367206031,1750701046652,-460.0,0.00019592,2]
[367206033,1750701046662,-460.0,0.00019592,2]
[367206035,1750701046672,-460.0,0.00019592,2]
[367206037,1750701046683,-813.22,0.00019592,2]
[367206039,1750701046693,-9008.1,0.00019592,2]
[367206041,1750701046703,-496.4,0.00019592,2]
[367206043,1750701046712,-3926.9,0.00019592,2]
[367206045,1750701046723,-524.84,0.00019592,2]
[367206047,1750701046733,-714.55,0.00019592,2]
[367206049,1750701046743,-628.81,0.00019592,2]
[367206051,1750701046753,-608.4,0.00019592,2]
[367206053,1750701046762,-460.0,0.00019592,2]
[367206056,1750701046772,-460.0,0.00019592,2]
[367206058,1750701046782,-527.75,0.00019592,2]
[367206059,1750701046791,-6310.46,0.00019592,2]
[367206061,1750701046801,-460.0,0.00019592,2]
[367206064,1750701046810,-460.0,0.00019592,2]
[367206066,1750701046820,-925.25,0.00019592,2]
[367206068,1750701046829,-1538.82,0.00019592,2]
[367206070,1750701046838,-460.0,0.00019592,2]
[367206072,1750701046848,-708.56,0.00019592,2]
[367206074,1750701046857,-460.0,0.00019592,2]
[367206076,1750701046867,-500.0,0.00019596,2]
[367206078,1750701046877,-460.0,0.00019596,2]
[367206080,1750701046888,-460.0,0.00019596,2]
[367206082,1750701046898,-460.0,0.00019596,2]
[367206084,1750701046910,-420.0,0.00019596,2]
[367206086,1750701046920,-460.0,0.00019596,2]
[367206088,1750701046930,-400.0,0.00019596,2]
[367206090,1750701046940,-430.0,0.00019596,2]
[367206092,1750701046950,-460.0,0.00019596,2]
[367206094,1750701046960,-1177.71,0.00019596,2]
[367206097,1750701046972,-460.0,0.00019596,2]
[367206099,1750701046983,-1847.64,0.00019596,2]
[367206101,1750701046992,-948.83,0.00019596,2]
[367206103,1750701047001,-1325.99,0.00019596,2]
[367206105,1750701047011,-500.0,0.00019596,2]
[367206107,1750701047021,-500.0,0.00019596,2]
[367206109,1750701047032,-460.0,0.00019596,2]
[367206111,1750701047041,-863.73,0.00019596,2]
[367206113,1750701047051,-428.57409162,0.00019596,2]
[367206115,1750701047061,-564.81,0.00019596,2]
[367206117,1750701047072,-4097.73,0.00019596,2]
[367206119,1750701047082,-460.0,0.00019596,2]
[367206121,1750701047091,-269.70899425,0.00019596,2]
[367206123,1750701047101,-460.0,0.00019596,2]
[367206125,1750701047111,-1168.79,0.00019596,2]
[367206127,1750701047120,-460.0,0.00019596,2]
[367206129,1750701047130,-460.0,0.00019596,2]
[367206132,1750701047140,-894.57,0.00019596,2]
[367206134,1750701047149,-725.99,0.00019596,2]
[367206136,1750701047159,-460.0,0.00019596,2]
[367206138,1750701047169,-520.8,0.00019596,2]
[367206140,1750701047178,-460.0,0.00019596,2]
[367206142,1750701047188,-763.35,0.00019596,2]
[367206144,1750701047198,-460.0,0.00019596,2]
[367206146,1750701047208,-1000.0,0.00019596,2]
[367206148,1750701047218,-1000.0,0.00019596,2]
[367206150,1750701047228,-460.0,0.00019596,2]
[367206152,1750701047238,-162.41259368,0.00019596,2]
[367206154,1750701047248,-744.3,0.00019596,2]
[367206156,1750701047258,-460.0,0.00019596,2]
[367206158,1750701047268,-460.0,0.00019596,2]
[367206160,1750701047278,-460.0,0.00019596,2]
[367206162,1750701047287,-905.67,0.00019596,2]
[367206164,1750701047297,-460.0,0.00019596,2]
[367206166,1750701047306,-460.0,0.00019596,2]
[367206168,1750701047316,-1061.28,0.00019596,2]
[367206170,1750701047326,-1003.0,0.00019596,2]
[367206172,1750701047335,-460.0,0.00019596,2]
[367206174,1750701047345,-658.6,0.00019596,2]
[367206176,1750701047354,-633.64,0.00019596,2]
[367206178,1750701047364,-818.6,0.00019596,2]
[367206180,1750701047373,-872.68,0.00019596,2]
[367206182,1750701047383,-460.0,0.00019597,2]
[367206184,1750701047393,-460.0,0.00019597,2]
[367206186,1750701047402,-460.0,0.00019597,2]
[367206188,1750701047412,-460.0,0.00019597,2]
[367206190,1750701047421,-460.0,0.00019597,2]
[367206192,1750701047431,-460.0,0.00019597,2]
[367206194,1750701047441,-460.0,0.00019597,2]
[367206196,1750701047451,-686.12,0.00019597,2]
[367206198,1750701047461,-1537.98,0.00019597,2]
[367206200,1750701047471,-460.0,0.00019597,2]
[367206202,1750701047481,-281.08305988,0.00019597,2]
[367206204,1750701047490,-460.0,0.00019597,2]
[367206206,1750701047500,-360.05239322,0.00019597,2]
[367206208,1750701047510,-460.0,0.00019597,2]
[367206210,1750701047520,-460.0,0.00019597,2]
[367206212,1750701047530,-460.0,0.00019597,2]
[367206214,1750701047540,-460.0,0.00019597,2]
[367206216,1750701047550,-460.0,0.00019597,2]
[367206218,1750701047561,-460.0,0.00019597,2]
[367206240,1750701047756,-460.0,0.00019597,2]
[367206242,1750701047766,-761.89,0.00019597,2]
[367206244,1750701047777,-182.16079871,0.00019597,2]
[367206246,1750701047786,-500.0,0.00019597,2]
[367206248,1750701047796,-500.0,0.00019597,2]
[367206250,1750701047806,-1000.0,0.00019597,2]
[367206252,1750701047816,-1000.0,0.00019597,2]
[367206253,1750701047826,-320.1,0.00019599,2]
[367206256,1750701047836,-1000.0,0.00019599,2]
[367206258,1750701047846,-151.0,0.000196,2]
[367206260,1750701047856,-151.0,0.000196,2]
[367206262,1750701047865,-1000.0,0.00019604,2]
[367206264,1750701047874,-800.0,0.00019604,2]
[367206266,1750701047884,-200.0,0.00019605,10]
[367206268,1750701047893,-200.0,0.00019605,10]
[367206269,1750701047903,-200.0,0.00019605,10]
[367206271,1750701047915,-200.0,0.00019605,10]
[367206273,1750701047924,-200.0,0.00019605,10]
[367206275,1750701047934,-200.0,0.00019605,10]
[367206277,1750701047944,-200.0,0.00019605,10]
[367206279,1750701047953,-200.0,0.00019605,10]
[367206281,1750701047963,-200.0,0.00019605,10]
[367206283,1750701047972,-200.0,0.00019605,10]
[367206285,1750701047984,-200.0,0.00019605,10]
[367206287,1750701047995,-200.0,0.00019605,10]
[367206289,1750701048004,-200.0,0.00019605,10]
[367206291,1750701048013,-200.0,0.00019605,10]
[367206293,1750701048022,-200.0,0.00019605,10]
[367206295,1750701048033,-200.0,0.00019605,10]
[367206298,1750701048044,-200.0,0.00019605,10]
[367206299,1750701048054,-200.0,0.00019605,10]
[367206301,1750701048063,-200.0,0.00019605,10]
[367206304,1750701048074,-200.0,0.00019605,10]
[367206306,1750701048084,-200.0,0.00019605,10]
[367206308,1750701048093,-200.0,0.00019605,10]
[367206310,1750701048104,-200.0,0.00019605,10]
[367206312,1750701048113,-200.0,0.00019605,10]
[367206314,1750701048123,-200.0,0.00019605,10]
[367206315,1750701048133,-200.0,0.00019605,10]
[367206317,1750701048144,-200.0,0.00019605,10]
[367206320,1750701048155,-200.0,0.00019605,10]
[367206322,1750701048164,-200.0,0.00019605,10]
[367206324,1750701048174,-200.0,0.00019605,10]
[367206325,1750701048185,-200.0,0.00019605,10]
[367206327,1750701048194,-200.0,0.00019605,10]
[367206329,1750701048204,-200.0,0.00019605,10]
[367206331,1750701048214,-200.0,0.00019605,10]
[367206333,1750701048224,-200.0,0.00019605,10]
[367206336,1750701048234,-200.0,0.00019605,10]
[367206337,1750701048246,-200.0,0.00019605,10]
[367206339,1750701048255,-200.0,0.00019605,10]
[367206342,1750701048265,-200.0,0.00019605,10]
[367206344,1750701048275,-200.0,0.00019605,10]
[367206345,1750701048285,-200.0,0.00019605,10]
[367206347,1750701048294,-200.0,0.00019605,10]
[367206350,1750701048304,-200.0,0.00019605,10]
[367206352,1750701048314,-200.0,0.00019605,10]
[367206354,1750701048324,-200.0,0.00019605,10]
[367206356,1750701048333,-200.0,0.00019605,10]
[367206358,1750701048343,-200.0,0.00019605,10]
[367206360,1750701048353,-200.0,0.00019605,10]
[367206362,1750701048363,-200.0,0.00019605,10]
[367206364,1750701048373,-200.0,0.00019605,10]
[367206366,1750701048383,-200.0,0.00019605,10]
[367206368,1750701048393,-200.0,0.00019605,10]
[367206370,1750701048403,-200.0,0.00019605,10]
[367206372,1750701048413,-200.0,0.00019605,10]
[367206374,1750701048424,-200.0,0.00019605,10]
[367206376,1750701048435,-200.0,0.00019605,10]
[367206378,1750701048445,-200.0,0.00019605,10]
[367206380,1750701048455,-200.0,0.00019605,10]
[367206382,1750701048466,-200.0,0.00019605,10]
[367206384,1750701048476,-200.0,0.00019605,10]
[367206386,1750701048486,-300.342831,0.00019605,10]
[367206388,1750701048496,-524.09497732,0.00019605,10]
[367206390,1750701048506,-846.53928378,0.00019605,10]
[367206392,1750701048515,-213.63163053,0.00019605,10]
[367206394,1750701048525,-1000.0,0.00019605,2]
[367206396,1750701048535,-754.81788386,0.00019605,2]
[367206398,1750701048544,-12553.69357174,0.00019605,10]
[367206400,1750701048554,-432.13598396,0.00019606,2]
[367206402,1750701048564,-516.15,0.00019606,2]
[367206404,1750701048574,-460.0,0.00019606,2]
[367206406,1750701048584,-432.0073705,0.00019606,2]
[367206408,1750701048594,-710.92,0.00019606,2]
[367206410,1750701048604,-410.0,0.00019606,2]
[367206412,1750701048614,-460.0,0.00019606,2]
[367206414,1750701048624,-460.0,0.00019606,2]
[367206416,1750701048634,-460.0,0.00019606,2]
[367206418,1750701048643,-460.0,0.00019606,2]
[367206420,1750701048652,-379.87603613,0.00019612,2]
[367206422,1750701048662,-268.40493422,0.00019626,2]
[367206424,1750701048671,-800.0,0.00019641,2]
[367206426,1750701048681,-800.0,0.00019655,2]
[367206428,1750701048691,-800.0,0.00019659,2]
[367206430,1750701048700,-658.40760355,0.00019699,2]
[367206432,1750701048710,-800.0,0.00019699,2]
[367206434,1750701048720,-151.0,0.000197,2]
[367206436,1750701048730,-272.16602672,0.00019712,2]
[367206438,1750701048740,-800.0,0.00019713,2]
[367206440,1750701048749,-800.0,0.00019745,2]
[367206442,1750701048759,-224.64748095,0.00019756,2]
[367206444,1750701048768,-800.0,0.00019759,2]
[367206446,1750701048777,-800.0,0.00019773,2]
[367206448,1750701048788,-800.0,0.00019775,2]
[367206450,1750701048797,-800.0,0.00019779,2]
[367206452,1750701048807,-230.66147402,0.00019789,2]
[367206454,1750701048816,-800.0,0.00019793,2]
[367206456,1750701048826,-151.0,0.000198,2]
[367206458,1750701048836,-151.0,0.000198,2]
[367206460,1750701048845,-78794.0,0.000198,2]
[367206462,1750701048855,-151.0,0.000198,2]
[367206464,1750701048864,-151.0,0.000198,2]
[367206466,1750701048873,-151.0,0.000198,2]
[367206468,1750701048884,-800.0,0.00019807,2]
[367206470,1750701048894,-800.0,0.00019808,2]
[367206472,1750701048905,-800.0,0.00019812,2]
[367206474,1750701048917,-800.0,0.00019815,2]
[367206476,1750701048927,-800.0,0.00019835,2]
[367206478,1750701048936,-510.44,0.0001986,2]
[367206480,1750701048946,-460.0,0.00019861,2]
[367206482,1750701048957,-460.0,0.00019861,2]
[367206484,1750701048967,-460.0,0.00019862,2]
[367206486,1750701048978,-460.0,0.00019862,2]
[367206488,1750701048988,-460.0,0.00019862,2]
[367206490,1750701048998,-460.0,0.00019862,2]
[367206492,1750701049008,-460.0,0.00019862,2]
[367206494,1750701049017,-460.0,0.00019862,2]
[367206496,1750701049026,-460.0,0.00019862,2]
[367206498,1750701049036,-460.0,0.00019862,2]
[367206500,1750701049045,-460.0,0.00019862,2]
[367206502,1750701049056,-609.41,0.00019862,2]
[367206504,1750701049065,-460.0,0.00019862,2]
[367206507,1750701049075,-460.0,0.00019862,2]
[367206509,1750701049084,-460.0,0.00019862,2]
[367206511,1750701049094,-460.0,0.00019862,2]
[367206513,1750701049103,-532.6,0.00019862,2]
[367206515,1750701049113,-607.37,0.00019862,2]
[367206517,1750701049122,-652.27,0.00019862,2]
[367206519,1750701049132,-460.0,0.00019862,2]
[367206520,1750701049142,-460.0,0.00019862,2]
[367206523,1750701049151,-460.0,0.00019862,2]
[367206525,1750701049162,-587.78,0.00019862,2]
[367206527,1750701049171,-460.0,0.00019862,2]
[367206529,1750701049181,-882.58,0.00019862,2]
[367206531,1750701049191,-941.43,0.00019862,2]
[367206533,1750701049201,-7361.22,0.00019862,2]
[367206535,1750701049211,-464.06885599,0.00019862,2]
[367206537,1750701049221,-460.0,0.00019862,2]
[367206539,1750701049231,-540.28,0.00019862,2]
[367206541,1750701049241,-2034.89,0.00019862,2]
[367206543,1750701049250,-6851.55,0.00019862,2]
[367206545,1750701049259,-460.0,0.00019862,2]
[367206546,1750701049269,-612.09,0.00019863,2]
[367206548,1750701049279,-929.55,0.00019863,2]
[367206550,1750701049288,-560.5,0.00019863,2]
[367206552,1750701049298,-560.5,0.00019863,2]
[367206554,1750701049307,-424.97810743,0.00019863,2]
[367206556,1750701049316,-904.99,0.00019863,2]
[367206558,1750701049326,-460.0,0.00019863,2]
[367206560,1750701049335,-460.0,0.00019863,2]
[367206563,1750701049345,-460.0,0.00019863,2]
[367206565,1750701049355,-5745.73,0.00019863,2]
[367206567,1750701049364,-460.0,0.00019863,2]
[367206569,1750701049374,-2147.38,0.00019863,2]
[367206571,1750701049384,-1068.93,0.00019863,2]
[367206573,1750701049394,-460.0,0.00019863,2]
[367206575,1750701049404,-460.0,0.00019863,2]
[367206577,1750701049414,-460.0,0.00019863,2]
[367206578,1750701049425,-515.86342327,0.00019863,2]
[367206584,1750701049955,-460.0,0.0001959,2]
[367206585,1750701049965,-479.37,0.0001959,2]
[367206586,1750701049974,-84.53,0.00019591,2]
[367206587,1750701049995,-375.47,0.00019591,2]
[367206588,1750701050052,-460.0,0.00019592,2]
[367206589,1750701050062,-460.0,0.00019592,2]
[367206590,1750701050071,-285.38,0.00019592,2]
[367206655,1750701122010,230.14362638,0.00018998,2]
[367206656,1750701159224,5000.0,0.0001911,2]
[367206657,1750701169700,-192.90798617,0.00019178,2]
[367206658,1750701170393,-104.08076583,0.00019178,2]
[367206659,1750701170414,-591.7927714,0.00019311,2]
[367206660,1750701175190,200.0,0.00024658,120]
[367206661,1750701177342,313.35865299,0.00017921,2]
[367206663,1750701503087,220.471537,0.00013699,2]
[367206667,1750701604495,666.0,0.00018578,2]
[367206668,1750701622991,24900.0,0.00018576,2]
[367206669,1750701632556,-154.78209141,0.0001929,2]
[367206670,1750701679549,10000.0,0.00018498,2]
[367206671,1750701681634,-227.04894118,0.0001929,2]
[367206672,1750701725978,72.95105882,0.000193,2]
[367206673,1750701746891,-143.92037123,0.000193,2]
[367206674,1750701762952,156.07962877,0.000193,2]
[367206675,1750701793759,-60.79180128,0.000193,2]
[367206676,1750701793781,-107.9741764,0.000193,2]
[367206680,1750701828550,5000.0,0.0001911,2]
[367206682,1750701843962,5000.0,0.0001911,2]
[367206684,1750701860123,5000.0,0.0001911,2]
[367206686,1750701875567,5000.0,0.0001911,2]
[367206687,1750701876565,250.0,0.00019098,2]
[367206688,1750701944360,1000.0,0.00019,2]
[367206689,1750701944934,1729.812895,0.000185,2]
[367206691,1750702004957,5235.0349482,0.00018414,2]
[367206692,1750702025776,247.85966223,0.00018807,2]
[367206693,1750702031184,-108.89725365,0.000193,2]
[367206694,1750702031211,-61.60391779,0.00019387,2]
[367206695,1750702033143,-238.39608221,0.00019387,2]
[367206696,1750702033169,-1200.0,0.00019388,2]
[367206697,1750702033196,-300.0,0.00019388,2]
[367206698,1750702033232,-300.0,0.00019388,2]
[367206699,1750702033260,-300.0,0.00019388,2]
[367206700,1750702033290,-300.0,0.00019388,2]
[367206701,1750702033320,-460.0,0.00019389,2]
[367206702,1750702033343,-460.0,0.00019389,2]
[367206703,1750702033368,-205.93978856,0.00019389,2]
[367206704,1750702033397,-460.0,0.00019389,2]
[367206705,1750702033422,-460.0,0.00019389,2]
[367206706,1750702033448,-460.0,0.00019389,2]
[367206707,1750702033475,-456.34196986,0.00019389,2]
[367206708,1750702033501,-481.06032269,0.00019389,2]
[367206709,1750702049782,-197.61586692,0.00019178,2]
[367206711,1750702114751,-164.28874078,0.00019178,2]
[367206712,1750702114774,-24.71125922,0.00019289,2]
[367206713,1750702123788,189.0,0.0001911,2]
[367206714,1750702126724,-434.0,0.00019289,2]
[367206715,1750702128000,-184.870615,0.00019289,2]
[367206716,1750702131200,-273.591001,0.00019178,2]
[367206717,1750702139362,434.0,0.0001911,2]
[367206718,1750702152127,-1283.63043533,0.00019289,2]
[367206719,1750702152151,-300.0,0.00019387,2]
[367206720,1750702152172,-460.0,0.00019388,2]
[367206721,1750702152193,-365.83363809,0.00019388,2]
[367206722,1750702152214,-460.0,0.00019388,2]
[367206723,1750702152237,-330.39365968,0.00019388,2]
[367206724,1750702159144,-129.60634032,0.00019388,2]
[367206725,1750702159168,-460.0,0.00019388,2]
[367206726,1750702159191,-440.0,0.00019388,2]
[367206727,1750702159214,-553.72,0.00019388,2]
[367206728,1750702159238,-211.28896099,0.00019388,2]
[367206729,1750702173148,-442.04103901,0.00019388,2]
[367206730,1750702173171,-252.85260023,0.00019388,2]
[367206731,1750702173194,-500.0,0.00019388,2]
[367206732,1750702173219,-500.0,0.00019388,2]
[367206733,1750702173240,-500.0,0.00019388,2]
[367206734,1750702173268,-500.0,0.00019388,2]
[367206735,1750702173291,-500.0,0.00019388,2]
[367206736,1750702173313,-500.0,0.00019388,2]
[367206737,1750702173337,-330.97676089,0.00019388,2]
[367206738,1750702173360,-500.0,0.00019388,2]
[367206739,1750702173382,-500.0,0.00019388,2]
[367206740,1750702173403,-500.0,0.00019388,2]
[367206741,1750702173425,-500.0,0.00019388,2]
[367206742,1750702173448,-500.0,0.00019388,2]
[367206743,1750702173473,-500.0,0.00019388,2]
[367206744,1750702173495,-343.69489024,0.00019388,2]
[367206745,1750702173519,-500.0,0.00019388,2]
[367206746,1750702173544,-302.13579227,0.00019388,2]
[367206747,1750702173567,-500.0,0.00019388,2]
[367206748,1750702173590,-500.0,0.00019388,2]
[367206749,1750702173614,-500.0,0.00019388,2]
[367206750,1750702173638,-500.0,0.00019388,2]
[367206751,1750702173661,-415.48348876,0.00019388,2]
[367206752,1750702173684,-500.0,0.00019388,2]
[367206753,1750702173934,-500.0,0.00019388,2]
[367206754,1750702173957,-500.0,0.00019388,2]
[367206755,1750702173979,-520.39914664,0.00019388,2]
[367206756,1750702174000,-500.0,0.00019388,2]
[367206757,1750702174023,-571.60775143,0.00019388,2]
[367206758,1750702174047,-500.0,0.00019388,2]
[367206759,1750702174069,-500.0,0.00019388,2]
[367206760,1750702174090,-500.0,0.00019388,2]
[367206761,1750702174113,-500.0,0.00019388,2]
[367206762,1750702174135,-500.0,0.00019388,2]
[367206763,1750702174156,-500.0,0.00019388,2]
[367206764,1750702174179,-500.0,0.00019388,2]
[367206765,1750702174201,-500.0,0.00019388,2]
[367206766,1750702174223,-500.0,0.00019388,2]
[367206767,1750702174244,-500.0,0.00019388,2]
[367206768,1750702174270,-500.0,0.00019388,2]
[367206769,1750702174293,-500.0,0.00019388,2]
[367206770,1750702174315,-500.0,0.00019388,2]
[367206771,1750702174339,-500.0,0.00019388,2]
[367206772,1750702174363,-500.0,0.00019388,2]
[367206773,1750702174386,-500.0,0.00019388,2]
[367206774,1750702174408,-500.0,0.00019388,2]
[367206775,1750702174433,-500.0,0.00019388,2]
[367206776,1750702174456,-500.0,0.00019388,2]
[367206777,1750702174478,-500.0,0.00019388,2]
[367206778,1750702174499,-500.0,0.00019388,2]
[367206779,1750702174520,-500.0,0.00019388,2]
[367206780,1750702174542,-500.0,0.00019388,2]
[367206781,1750702174564,-500.0,0.00019388,2]
[367206782,1750702174586,-500.0,0.00019388,2]
[367206783,1750702174607,-500.0,0.00019388,2]
[367206784,1750702174628,-329.43423724,0.00019388,2]
[367206785,1750702174650,-500.0,0.00019388,2]
[367206786,1750702174672,-500.0,0.00019388,2]
[367206787,1750702174693,-500.0,0.00019388,2]
[367206788,1750702174715,-500.0,0.00019388,2]
[367206789,1750702174738,-500.0,0.00019388,2]
[367206790,1750702174761,-500.0,0.00019388,2]
[367206791,1750702174783,-500.0,0.00019388,2]
[367206792,1750702174807,-500.0,0.00019388,2]
[367206793,1750702174830,-500.0,0.00019388,2]
[367206794,1750702174861,-500.0,0.00019388,2]
[367206795,1750702174884,-500.0,0.00019388,2]
[367206796,1750702174907,-500.0,0.00019388,2]
[367206797,1750702174931,-416.34307167,0.00019388,2]
[367206798,1750702174952,-500.0,0.00019388,2]
[367206799,1750702174973,-500.0,0.00019388,2]
[367206800,1750702174995,-500.0,0.00019388,2]
[367206801,1750702175016,-500.0,0.00019388,2]
[367206802,1750702175037,-500.0,0.00019388,2]
[367206803,1750702175060,-500.0,0.00019388,2]
[367206804,1750702175081,-500.0,0.00019388,2]
[367206805,1750702175106,-272.92098458,0.00019388,2]
[367206806,1750702175128,-500.0,0.00019388,2]
[367206807,1750702175149,-500.0,0.00019388,2]
[367206808,1750702175170,-500.0,0.00019388,2]
[367206809,1750702175192,-500.0,0.00019388,2]
[367206810,1750702175213,-500.0,0.00019388,2]
[367206811,1750702175235,-500.0,0.00019388,2]
[367206812,1750702175260,-677.47,0.00019388,2]
[367206813,1750702175280,-460.0,0.00019388,2]
[367206814,1750702175301,-934.6,0.00019388,2]
[367206815,1750702175323,-928.71,0.00019388,2]
[367206816,1750702175343,-460.0,0.00019388,2]
[367206817,1750702175365,-861.40967731,0.00019389,2]
[367206818,1750702175387,-451.62314636,0.00019389,2]
[367206819,1750702175408,-460.0,0.00019389,2]
[367206820,1750702175429,-554.93,0.00019389,2]
[367206821,1750702175451,-460.0,0.00019389,2]
[367206822,1750702175473,-606.87,0.00019389,2]
[367206823,1750702175494,-6805.9,0.00019389,2]
[367206824,1750702175514,-869.83,0.00019389,2]
[367206825,1750702175534,-486.25,0.00019389,2]
[367206826,1750702175555,-153.87064629,0.00019389,2]
[367206827,1750702186494,4527.764539,0.00018668,2]
[367206828,1750702189539,871.4698581,0.0001852,2]
[367206936,1750702236249,-521.26,0.00019378,3]
[367206937,1750702236259,-260.63,0.00019378,3]
[367206938,1750702236270,-210.36,0.00019378,3]
[367206939,1750702236280,-1042.51,0.00019379,3]
[367206940,1750702236289,-300.0,0.00019386,2]
[367206941,1750702236298,-185.0,0.00019386,2]
[367206942,1750702236308,-300.0,0.00019386,2]
[367206943,1750702236318,-1200.0,0.00019386,2]
[367206944,1750702236327,-300.0,0.00019386,2]
[367206945,1750702236336,-500.0,0.00019386,2]
[367206946,1750702236349,-224.48879407,0.00019386,2]
[367206947,1750702236358,-314.55297343,0.00019386,2]
[367206948,1750702236367,-157.2759432,0.00019386,2]
[367206949,1750702236377,-500.0,0.00019386,2]
[367206950,1750702236386,-592.15935969,0.00019386,2]
[367206953,1750702236395,-500.0,0.00019386,2]
[367206954,1750702236404,-500.0,0.00019386,2]
[367206955,1750702236413,-377.29209846,0.00019386,2]
[367206956,1750702236423,-32377.11166659,0.00019387,2]
[367206957,1750702236434,-516.35,0.00019387,2]
[367206958,1750702236450,-16967.62136796,0.00019387,2]
[367206959,1750702236461,-2453.6286882,0.00019387,2]
[367206960,1750702236472,-43203.16243677,0.00019387,2]
[367206961,1750702236484,-42913.08388618,0.00019387,2]
[367206962,1750702236494,-6794.43,0.00019388,2]
[367206963,1750702236503,-460.0,0.00019388,2]
[367206964,1750702236513,-460.0,0.00019388,2]
[367206965,1750702236522,-586.68,0.00019388,2]
[367206966,1750702236532,-674.21,0.00019388,2]
[367206967,1750702236542,-569.82582163,0.00019388,2]
[367206968,1750702236551,-460.0,0.00019388,2]
[367206969,1750702236561,-6749.54,0.00019388,2]
[367206970,1750702236571,-460.0,0.00019388,2]
[367206971,1750702236580,-402.62581873,0.00019388,2]
[367206972,1750702236590,-1068.57,0.00019388,2]